bitfinex-derivatives/quotes_SOLF0:USTF0_20260304
["timestamp","ask_amount","ask_price","bid_price","bid_amount"]
[1772598648335,3.75182432,84.919,84.87,1.59198069]
[1772598648636,3.75182432,84.909,84.861,3.66942621]
[1772598649138,3.75182432,84.909,84.87,1.59198069]
[1772598650240,3.75182432,84.923,84.88,1.59198069]
[1772598651639,3.75182432,84.923,84.88,12.19498069]
[1772598654741,3.75182432,84.923,84.88,15.8644069]
[1772598654946,10.75134327,84.957,84.839,2.04975968]
[1772598654947,3.75182432,84.936,84.9,1.59198069]
[1772598655142,3.75182432,84.949,84.91,1.59198069]
[1772598655344,9.30599469,84.948,84.91,1.59198069]
[1772598655546,3.75182432,84.949,84.91,1.59198069]
[1772598655749,13.05779073,84.948,84.91,1.59198069]
[1772598655949,3.75182432,84.947,84.9,1.59198069]
[1772598656151,1.59198069,84.95,84.9,1.59198069]
[1772598656152,3.75182432,84.945,84.9,1.59198069]
[1772598657443,3.75182432,84.945,84.901,10.601]
[1772598657647,3.75182432,84.945,84.91,1.59198069]
[1772598658751,3.75182432,84.945,84.902,3.66942621]
[1772598661056,3.75182432,84.939,84.89,1.5967809]
[1772598661254,3.75182432,84.929,84.88,1.5967809]
[1772598661750,3.75182432,84.909,84.859,3.66942621]
[1772598661949,14.53647142,84.962,84.833,202.00423992]
[1772598661950,3.75182432,84.889,84.85,17.49295897]
[1772598662255,3.75182432,84.907,84.86,1.5967809]
[1772598663154,3.75182432,84.919,84.87,5.26620711]
[1772598663553,3.75182432,84.909,84.86,1.5967809]
[1772598664353,3.75182432,84.907,84.86,1.5967809]
[1772598664758,3.75182432,84.907,84.856,3.66942621]
[1772598665051,3.75182432,84.905,84.86,1.5967809]
[1772598665252,3.75182432,84.919,84.88,1.5967809]
[1772598665452,3.75182432,84.934,84.89,1.5967809]
[1772598665657,3.75182432,84.933,84.89,1.5967809]
[1772598666053,3.75182432,84.929,84.869,10.605]
[1772598666255,1.5967809,84.92,84.871,3.66942621]
[1772598666550,3.75182432,84.927,84.88,1.5967809]
[1772598667151,3.75182432,84.919,84.871,3.66942621]
[1772598668359,3.75182432,84.935,84.9,1.5967809]
[1772598669852,3.75182432,84.935,84.891,3.66942621]
[1772598671060,3.75182432,84.935,84.85,15.89617807]
[1772598671061,3.75182432,84.951,84.91,1.5967809]
[1772598672155,3.75182432,84.929,84.853,3.66942621]
[1772598672356,1.5967809,84.92,84.871,3.66942621]
[1772598672763,3.75182432,84.919,84.871,3.66942621]
[1772598673263,1.5967809,84.9,84.86,1.5967809]
[1772598673460,3.75182432,84.899,84.85,17.49295897]
[1772598674464,3.75182432,84.899,84.85,15.89617807]
[1772598679371,3.75182432,84.899,84.851,3.87766668]
[1772598680973,3.67881866,84.911,84.856,3.92134921]
[1772598682582,3.67881866,84.911,84.853,10.607]
[1772598683678,3.67881866,84.911,84.864,3.92134921]
[1772598683878,4.7574741,84.92,84.864,3.92134921]
[1772598684184,3.67881866,84.925,84.864,3.92134921]
[1772598685379,3.67881866,84.919,84.851,3.92134921]
[1772598685976,3.67881866,84.919,84.865,3.92134921]
[1772598686183,19.86633929,84.933,84.865,3.92134921]
[1772598686184,10.45953148,84.932,84.865,3.92134921]
[1772598686381,3.67881866,84.933,84.865,3.92134921]
[1772598686681,3.67881866,84.933,84.886,3.92134921]
[1772598686878,3.67881866,84.949,84.886,3.92134921]
[1772598687079,3.67881866,84.963,84.901,3.92134921]
[1772598687882,3.67881866,84.963,84.903,3.92134921]
[1772598688485,3.67881866,84.963,84.906,10.6]
[1772598688683,3.67881866,84.963,84.907,3.92134921]
[1772598689973,3.67881866,84.988,84.907,3.92134921]
[1772598690185,3.67881866,84.987,84.907,3.92134921]
[1772598690879,3.67881866,84.987,84.921,3.92134921]
[1772598692279,3.67881866,84.987,84.923,3.92134921]
[1772598693286,3.67881866,84.987,84.925,3.92134921]
[1772598693988,3.67881866,84.987,84.93,3.92134921]
[1772598695388,3.67881866,84.987,84.936,3.92134921]
[1772598698495,4.7574741,85.01,84.9,4.7574741]
[1772598698496,3.67881866,85.009,84.941,3.92134921]
[1772598699594,3.67881866,85.009,84.943,3.92134921]
[1772598700899,3.67881866,85.006,84.928,3.92134921]
[1772598701291,3.67881866,84.989,84.928,3.92134921]
[1772598701791,3.67881866,84.989,84.929,10.597]
[1772598703599,3.67881866,84.987,84.901,3.92134921]
[1772598704095,3.67881866,85.004,84.921,3.92134921]
[1772598704294,3.67881866,85.004,84.941,3.92134921]
[1772598704689,3.67881866,85.004,84.951,3.92134921]
[1772598707701,3.67881866,85.019,84.962,3.92134921]
[1772598709401,3.67881866,85.019,84.965,3.83323525]
[1772598713304,292.85693314,85.016,84.965,3.83323525]
[1772598713900,3.61297785,85.015,84.965,3.83323525]
[1772598716509,3.61297785,85.009,84.965,3.83323525]
[1772598721109,3.61297785,85.009,84.952,10.594]
[1772598721317,3.61297785,84.999,84.952,14.42723525]
[1772598721511,3.61297785,84.999,84.953,3.83323525]
[1772598721910,289.24395529,85.016,84.961,3.83323525]
[1772598722210,289.24395529,85.016,84.971,3.83323525]
[1772598722409,3.61297785,85.009,84.96,1.5945395]
[1772598723022,3.61297785,85.009,84.961,3.83323525]
[1772598725112,1.5945395,85.0,84.961,3.83323525]
[1772598726521,1.5945395,84.99,84.948,3.83323525]
[1772598726917,1.5945395,85.01,84.961,3.83323525]
[1772598727123,289.24395529,85.016,84.971,3.83323525]
[1772598727331,5.20751735,85.02,84.971,3.83323525]
[1772598727731,3.61297785,85.019,84.971,3.83323525]
[1772598730827,3.61297785,85.019,84.972,14.42523525]
[1772598731033,3.61297785,85.019,84.973,3.83323525]
[1772598731734,3.61297785,85.017,84.974,14.42523525]
[1772598732536,3.61297785,85.017,84.974,3.83323525]
[1772598732734,1.5945395,85.01,84.974,3.83323525]
[1772598736428,3.61297785,85.009,84.965,10.593]
[1772598737238,3.61297785,85.009,84.965,14.42623525]
[1772598737634,3.61297785,85.009,84.966,3.83323525]
[1772598738430,3.61297785,85.009,84.91,164.891]
[1772598738431,19.80275665,85.024,84.971,3.95724565]
[1772598738633,1.5945395,85.04,84.99,1.5945395]
[1772598738831,1.5945395,85.04,84.991,3.95724565]
[1772598739027,21.40266502,85.05,84.997,3.95724565]
[1772598739233,1.5945395,85.05,84.997,3.95724565]
[1772598739539,1.5945395,85.05,85.001,3.95724565]
[1772598740832,1.5945395,85.07,85.021,3.7897546]
[1772598742332,1.5945395,85.07,85.026,3.7897546]
[1772598742932,1.5945395,85.07,84.975,196.83416454]
[1772598742933,1.5945395,85.09,85.041,3.7897546]
[1772598743830,1.5945395,85.09,85.041,14.3727546]
[1772598744036,1.5945395,85.09,85.042,3.7897546]
[1772598744836,1.5945395,85.09,85.051,3.7897546]
[1772598745237,1.5945395,85.1,85.051,3.7897546]
[1772598745540,1.5945395,85.1,85.053,3.7897546]
[1772598745841,1.5945395,85.09,85.053,3.7897546]
[1772598746234,1.5945395,85.09,85.055,3.7897546]
[1772598746439,3.59438464,85.106,85.055,3.7897546]
[1772598746633,1.5945395,85.09,85.055,3.7897546]
[1772598747143,10.82701766,85.156,84.991,21.18]
[1772598747144,1.5945395,85.11,85.061,3.7897546]
[1772598748342,1.5945395,85.11,85.062,3.7897546]
[1772598749138,1.5945395,85.11,85.064,3.7897546]
[1772598749339,1.5945395,85.12,85.071,3.7897546]
[1772598749739,1.5945395,85.13,85.081,3.7897546]
[1772598750543,1.5945395,85.13,85.083,3.7897546]
[1772598750945,1.5945395,85.11,85.083,3.7897546]
[1772598751245,1.5945395,85.11,85.061,3.7897546]
[1772598752345,1.5945395,85.12,85.071,3.7897546]
[1772598754740,1.5945395,85.12,85.062,10.581]
[1772598754741,3.59438464,85.136,85.081,3.7897546]
[1772598754940,3.59438464,85.136,85.091,3.7897546]
[1772598755647,1.5945395,85.13,85.091,3.7897546]
[1772598756244,1.5945395,85.15,85.091,3.7897546]
[1772598756449,1.5945395,85.15,85.101,3.7897546]
[1772598756651,1.5945395,85.16,85.111,3.7897546]
[1772598758850,1.5945395,85.17,85.121,3.7897546]
[1772598759847,1.5945395,85.16,85.121,3.7897546]
[1772598760352,3.59438464,85.159,85.102,3.7897546]
[1772598760751,3.59438464,85.159,85.111,3.7897546]
[1772598761156,1.5945395,85.14,85.091,3.7897546]
[1772598761543,1.5945395,85.14,85.101,3.7897546]
[1772598761848,3.59438464,85.149,85.101,3.7897546]
[1772598763352,1.5945395,85.15,85.101,3.7897546]
[1772598763956,1.5945395,85.15,85.104,3.7897546]
[1772598764749,3.59438464,85.163,85.111,3.7897546]
[1772598764750,1.5945395,85.16,85.111,3.7897546]
[1772598765257,1.5945395,85.15,85.111,3.7897546]
[1772598765659,3.59438464,85.163,85.111,3.7897546]
[1772598765660,1.5945395,85.16,85.111,3.7897546]
[1772598766755,3.59438464,85.149,85.1,1.5945395]
[1772598766956,3.59438464,85.149,85.1,5.3842941]
[1772598767258,3.59438464,85.149,85.101,3.7897546]
[1772598768562,1.5945395,85.13,85.09,1.5945395]
[1772598768760,3.86806745,85.139,85.091,3.67890384]
[1772598769357,3.86806745,85.139,85.1,1.5945395]
[1772598769753,3.86806745,85.139,85.091,3.67890384]
[1772598770063,465.20097832,85.183,85.022,21.172]
[1772598770064,1.5945395,85.12,85.073,3.67890384]
[1772598770260,1.5945395,85.11,85.073,3.67890384]
[1772598770457,1.5945395,85.1,85.05,1.5945395]
[1772598770662,3.86806745,85.089,85.04,1.5945395]
[1772598770960,1.5945395,85.08,85.04,1.5945395]
[1772598771152,3.86806745,85.089,85.04,1.5945395]
[1772598771360,3.86806745,85.089,85.04,5.27344334]
[1772598771659,3.86806745,85.089,85.04,3.67890384]
[1772598771862,3.86806745,85.089,85.041,3.67890384]
[1772598776663,1.5945395,85.07,85.027,3.67890384]
[1772598777256,3.86806745,85.079,85.031,3.67890384]
[1772598778058,1.5945395,85.07,85.031,3.67890384]
[1772598778959,3.86806745,85.059,85.01,1.5945395]
[1772598779563,3.86806745,85.059,85.011,3.67890384]
[1772598780567,3.86806745,85.077,85.031,3.67890384]
[1772598781267,1.5945395,85.07,85.031,3.67890384]
[1772598782471,1.59207302,85.07,85.031,3.67890384]
[1772598783366,1.59207302,85.06,85.017,3.67890384]
[1772598783666,3.86806745,85.069,85.021,3.67890384]
[1772598787372,5.46014047,85.08,85.031,3.67890384]
[1772598787675,3.86806745,85.079,85.031,3.67890384]
[1772598788274,3.86806745,85.069,85.021,3.67890384]
[1772598790476,3.86806745,85.069,85.03,1.59207302]
[1772598790772,3.86806745,85.069,85.023,3.67890384]
[1772598791576,3.86806745,85.069,85.031,3.67890384]
[1772598791874,3.86806745,85.089,85.041,3.67890384]
[1772598792480,1.59207302,85.08,85.041,3.67890384]
[1772598793482,3.86806745,85.089,85.041,3.67890384]
[1772598794183,1.59207302,85.08,85.041,3.67890384]
[1772598794878,3.86806745,85.069,85.02,1.59207302]
[1772598795186,3.86806745,85.059,85.011,3.67890384]
[1772598801288,3.86806745,85.059,85.02,1.59207302]
[1772598802388,3.86806745,85.059,84.963,21.187]
[1772598802389,3.81713136,85.029,84.98,1.59207302]
[1772598802686,3.81713136,85.029,84.981,3.62675842]
[1772598802891,3.81713136,85.029,84.99,1.59207302]
[1772598804782,3.81713136,85.029,84.981,3.62675842]
[1772598806290,3.81713136,85.029,84.98,1.59207302]
[1772598806486,3.81713136,85.019,84.97,1.59207302]
[1772598806687,3.81713136,85.019,84.968,3.62675842]
[1772598806893,3.81713136,85.019,84.97,1.59207302]
[1772598807390,3.81713136,85.019,84.98,1.59207302]
[1772598807891,3.81713136,85.019,84.973,3.62675842]
[1772598808894,3.81713136,85.019,84.98,1.59207302]
[1772598809089,3.81713136,85.045,85.0,1.59207302]
[1772598809291,3.81713136,85.045,85.001,3.62675842]
[1772598809595,14.53647142,85.105,84.938,21.193]
[1772598809596,3.81713136,85.039,84.99,1.59207302]
[1772598809896,3.81713136,85.019,84.97,1.59207302]
[1772598810086,3.81713136,85.019,84.98,1.59207302]
[1772598812297,3.81713136,85.046,85.0,1.59207302]
[1772598812687,1.59207302,85.06,85.01,1.59207302]
[1772598812896,3.81713136,85.06,85.02,1.59207302]
[1772598814399,3.81713136,85.074,85.03,1.59207302]
[1772598815102,3.81713136,85.069,85.02,3.62675842]
[1772598815301,3.81713136,85.069,85.02,5.21883144]
[1772598817700,3.81713136,85.059,85.01,1.59207302]
[1772598818709,3.81713136,85.059,85.02,1.59207302]
[1772598818909,3.81713136,85.059,85.01,1.59207302]
[1772598821306,3.81713136,85.059,85.0,1.59207302]
[1772598822012,3.81713136,85.059,85.0,5.21883144]
[1772598822212,10.581,85.058,85.0,5.21883144]
[1772598822407,3.81713136,85.057,85.01,1.59207302]
[1772598822614,3.81713136,85.049,85.0,1.59207302]
[1772598823407,1.59207302,85.03,84.98,1.59207302]
[1772598823714,3.81713136,84.999,84.956,3.62675842]
[1772598824112,3.81713136,84.999,84.96,1.59207302]
[1772598826404,3.81713136,84.999,84.94,3.62675842]
[1772598826713,1.59207302,84.98,84.94,1.59207302]
[1772598827217,3.81713136,84.989,84.95,1.59207302]
[1772598827817,1.59207302,85.0,84.951,3.62675842]
[1772598828010,3.67147049,84.999,84.951,3.62675842]
[1772598830620,3.67147049,84.999,84.96,1.59207302]
[1772598833510,3.67147049,84.999,84.951,3.62675842]
[1772598834917,1.59207302,84.99,84.951,3.62675842]
[1772598836921,3.67147049,84.989,84.94,1.59207302]
[1772598837121,3.67147049,84.989,84.941,3.68954167]
[1772598841618,3.67147049,84.989,84.951,3.68954167]
[1772598841823,3.67147049,85.004,84.961,3.68954167]
[1772598842128,3.67147049,85.018,84.971,3.68954167]
[1772598843025,3.67147049,85.018,84.914,164.882]
[1772598843026,5.26569275,85.03,84.981,3.68954167]
[1772598844025,3.67147049,85.043,85.001,3.68954167]
[1772598845222,1.59422226,85.05,85.001,3.68954167]
[1772598845424,3.67147049,85.059,85.011,3.68954167]
[1772598846327,3.67147049,85.039,85.0,1.59422226]
[1772598846629,1.59422226,85.05,85.001,3.68954167]
[1772598847428,3.67147049,85.049,85.001,3.68954167]
[1772598849025,3.67147049,85.062,85.021,3.68954167]
[1772598850931,1.59422226,85.06,85.021,3.68954167]
[1772598853631,3.78098684,85.059,85.011,10.587]
[1772598854132,3.78098684,85.059,85.011,14.3678676]
[1772598854332,3.78098684,85.059,85.012,3.7808676]
[1772598854828,3.78098684,85.059,85.014,3.7808676]
[1772598856638,1.59422226,85.05,85.003,3.80950693]
[1772598856838,3.78098684,85.059,85.01,1.59422226]
[1772598857237,3.91088222,85.049,85.003,3.80950693]
[1772598857740,1.59422226,85.07,85.021,3.80950693]
[1772598858034,5.31652323,85.07,85.021,3.80950693]
[1772598858237,3.72230097,85.069,85.021,3.80950693]
[1772598858635,1.59422226,85.07,85.021,3.80950693]
[1772598858836,3.72230097,85.069,85.021,3.80950693]
[1772598861634,1.59422226,85.06,85.01,10.587]
[1772598861841,3.80201704,85.059,85.01,5.4911631]
[1772598862040,3.80201704,85.059,85.011,3.89694084]
[1772598863242,3.80201704,85.059,85.013,3.89694084]
[1772598863938,1.59422226,85.07,85.021,3.89694084]
[1772598864337,3.80201704,85.073,85.031,3.89694084]
[1772598865044,1.59422226,85.08,85.033,3.89694084]
[1772598866246,1.59422226,85.08,85.034,14.48094084]
[1772598866444,1.59422226,85.08,85.035,3.89694084]
[1772598866847,3.80201704,85.086,85.037,3.89694084]
[1772598867041,3.80201704,85.086,85.04,1.59422226]
[1772598867243,3.80201704,85.086,85.041,3.89694084]
[1772598867443,5.3962393,85.1,85.051,3.89694084]
[1772598867740,3.80201704,85.099,85.051,3.89694084]
[1772598868538,3.80201704,85.089,85.04,1.59422226]
[1772598868739,3.80201704,85.089,85.04,5.4911631]
[1772598868945,3.80201704,85.089,85.041,3.89694084]
[1772598869248,3.80201704,85.099,85.06,1.59422226]
[1772598869447,3.80201704,85.099,85.06,5.4911631]
[1772598870845,1.59422226,85.11,85.061,3.89694084]
[1772598871045,3.80201704,85.109,85.061,3.89694084]
[1772598872447,1.59422226,85.1,85.061,3.89694084]
[1772598872841,1.59422226,85.12,85.071,3.89694084]
[1772598873840,3.80201704,85.124,85.081,3.89694084]
[1772598875151,5.3962393,85.12,85.081,3.89694084]
[1772598876547,3.80201704,85.142,85.081,3.89694084]
[1772598876844,1.59422226,85.13,85.081,3.89694084]
[1772598877447,3.80201704,85.139,85.081,3.89694084]
[1772598877849,1.59422226,85.13,85.081,3.89694084]
[1772598878050,5.3962393,85.13,85.081,3.89694084]
[1772598878247,5.3962393,85.13,85.082,10.578]
[1772598878649,1.59422226,85.12,85.07,1.59422226]
[1772598878852,3.80201704,85.119,85.07,1.59422226]
[1772598879356,3.80201704,85.119,85.071,3.89694084]
[1772598879550,3.80201704,85.119,85.08,1.59422226]
[1772598879751,1.59422226,85.13,85.081,3.89694084]
[1772598879952,3.80201704,85.129,85.081,3.89694084]
[1772598881450,3.80201704,85.129,85.083,3.89694084]
[1772598881849,3.80201704,85.129,85.07,5.4911631]
[1772598882049,1.59422226,85.12,85.073,3.89694084]
[1772598882245,3.80201704,85.129,85.08,1.59422226]
[1772598882552,3.80201704,85.129,85.081,3.89694084]
[1772598884151,3.80201704,85.129,85.07,1.59422226]
[1772598884352,3.80201704,85.119,85.07,1.59422226]
[1772598884653,3.80201704,85.119,85.073,10.579]
[1772598886858,3.80201704,85.099,85.05,1.59422226]
[1772598887059,3.80201704,85.099,85.05,5.4911631]
[1772598887258,3.80201704,85.099,85.051,3.89694084]
[1772598887558,3.80201704,85.116,85.07,1.59422226]
[1772598887758,3.80201704,85.116,85.071,3.89694084]
[1772598892270,3.80201704,85.116,85.072,10.579]
[1772598892672,3.64352853,85.109,85.061,3.85512995]
[1772598893264,1.59422226,85.07,85.034,3.85512995]
[1772598893463,3.64352853,85.079,85.034,3.85512995]
[1772598893668,3.64352853,85.059,85.002,3.85512995]
[1772598893859,1.59422226,85.05,85.002,3.85512995]
[1772598894263,3.64352853,85.059,85.01,1.59422226]
[1772598894770,3.64352853,85.059,85.011,3.85512995]
[1772598896571,1.59422226,85.05,85.011,3.85512995]
[1772598896869,3.64352853,85.069,85.02,1.59422226]
[1772598897065,1.59422226,85.06,85.016,3.85512995]
[1772598897971,3.64352853,85.069,85.021,3.85512995]
[1772598898174,3.64352853,85.069,84.959,3.85512995]
[1772598898471,3.64352853,85.049,85.001,3.85512995]
[1772598899370,1.59422226,85.04,85.001,3.85512995]
[1772598899566,3.64352853,85.049,85.001,3.85512995]
[1772598900066,3.64352853,85.049,85.002,3.85512995]
[1772598900571,3.64352853,85.039,84.99,1.59422226]
[1772598901273,3.64352853,85.039,84.991,3.85512995]
[1772598901863,3.64352853,85.067,85.001,3.85512995]
[1772598902068,3.64352853,85.059,85.01,1.59422226]
[1772598902373,3.64352853,85.059,85.02,1.59422226]
[1772598902573,3.64352853,85.059,85.011,3.85512995]
[1772598904872,1.592639,85.07,85.021,3.85512995]
[1772598905174,1.592639,85.08,85.031,3.85512995]
[1772598905377,3.64352853,85.087,85.031,3.85512995]
[1772598905378,3.64352853,85.087,85.04,1.592639]
[1772598905768,1.592639,85.08,85.031,3.85512995]
[1772598906270,1.592639,85.08,85.033,3.85512995]
[1772598909979,1.592639,85.07,85.033,3.85512995]
[1772598911480,3.64352853,85.079,85.033,3.85512995]
[1772598911979,3.64352853,85.039,84.975,3.85512995]
[1772598912177,1.592639,85.03,84.991,3.85512995]
[1772598912376,1.592639,85.05,85.01,1.592639]
[1772598912580,3.64352853,85.059,85.011,3.85512995]
[1772598912776,1.592639,85.05,85.011,3.85512995]
[1772598913977,3.64352853,85.059,85.011,3.85512995]
[1772598914477,3.64352853,85.059,85.013,3.85512995]
[1772598914981,1.592639,85.08,85.031,3.85512995]
[1772598915280,3.64352853,85.069,85.021,10.586]
[1772598915882,3.64352853,85.069,85.021,14.44112995]
[1772598916179,3.64352853,85.069,85.022,3.85512995]
[1772598917378,3.64352853,85.1,85.026,3.85512995]
[1772598917574,1.592639,85.08,85.03,1.592639]
[1772598917771,1.592639,85.08,84.951,11.77]
[1772598917772,3.64352853,85.14,85.07,1.592639]
[1772598917980,3.64352853,85.14,85.1,1.592639]
[1772598918681,3.78134243,85.159,85.1,1.592639]
[1772598918884,1.592639,85.15,85.1,1.592639]
[1772598919083,3.78134243,85.159,85.11,1.592639]
[1772598919783,1.592639,85.15,85.102,3.70588396]
[1772598920386,1.592639,85.14,85.09,5.33863779]
[1772598920577,3.81548257,85.149,85.09,3.74599879]
[1772598922479,4.73066177,85.16,85.09,3.74599879]
[1772598922685,3.81548257,85.183,85.101,3.74599879]
[1772598924090,3.81548257,85.183,85.111,10.575]
[1772598924291,3.81548257,85.183,85.112,3.74599879]
[1772598928093,3.81548257,85.183,85.117,3.74599879]
[1772598929295,3.81548257,85.183,85.119,14.31999879]
[1772598929996,3.81548257,85.183,85.12,3.74599879]
[1772598931200,3.81548257,85.183,85.124,3.74599879]
[1772598932193,3.81548257,85.169,85.104,3.74599879]
[1772598934102,3.81548257,85.169,85.108,3.74599879]
[1772598935098,3.81548257,85.169,85.056,3.74599879]
[1772598935300,3.81548257,85.169,85.081,3.74599879]
[1772598935602,3.81548257,85.149,85.081,3.74599879]
[1772598935802,3.81548257,85.149,85.083,10.578]
[1772598936003,3.81548257,85.149,85.084,3.74599879]
[1772598938405,3.81548257,85.149,85.087,10.578]
[1772598938597,3.81548257,85.149,85.087,14.32399879]
[1772598939506,3.81548257,85.149,85.087,3.74599879]
[1772598940606,1.58985535,85.14,85.09,1.58985535]
[1772598940802,3.81548257,85.139,85.09,1.58985535]
[1772598941304,3.81548257,85.139,85.094,3.74599879]
[1772598942105,3.81548257,85.139,84.966,36.26258861]
[1772598942305,1.58985535,85.08,85.033,3.74599879]
[1772598942500,1.58985535,85.09,85.04,1.58985535]
[1772598942703,1.58985535,85.09,85.041,3.74599879]
[1772598943205,3.81548257,85.099,85.05,5.33585414]
[1772598944000,1.58985535,85.09,85.05,5.33585414]
[1772598944505,3.81548257,85.099,85.05,3.74599879]
[1772598945309,3.81548257,85.099,85.032,3.74599879]
[1772598945806,3.81548257,85.089,85.032,3.74599879]
[1772598949505,10.12363238,85.147,85.01,3.85095232]
[1772598949506,3.90998536,85.069,85.01,3.85095232]
[1772598951406,3.90998536,85.069,85.015,3.85095232]
[1772598951707,3.90998536,85.069,85.017,3.85095232]
[1772598951912,10.577,85.096,85.017,3.85095232]
[1772598951913,3.90998536,85.086,85.017,3.85095232]
[1772598953211,3.90998536,85.086,85.02,14.43695232]
[1772598953514,14.37661035,85.14,84.96,201.59650571]
[1772598953515,3.90998536,85.069,85.003,3.85095232]
[1772598953703,3.90998536,85.069,85.008,10.587]
[1772598954011,3.90998536,85.069,85.009,3.85095232]
[1772598957017,3.90998536,85.069,84.99,4.7362256]
[1772598957018,3.90998536,85.069,85.012,3.85095232]
[1772598957912,3.90998536,85.069,85.013,10.587]
[1772598958217,3.90998536,85.069,85.014,3.85095232]
[1772598959218,3.90998536,85.069,85.024,3.85095232]
[1772598959811,4.7362256,85.09,85.01,4.7362256]
[1772598959812,3.90998536,85.089,85.028,3.85095232]
[1772598961220,3.90998536,85.089,85.034,3.85095232]
[1772598964521,3.90998536,85.069,85.001,3.85095232]
[1772598964922,3.90998536,85.049,85.001,3.85095232]
[1772598965824,3.90998536,85.047,84.981,3.85095232]
[1772598967020,3.90998536,85.035,84.972,10.592]
[1772598969326,3.90998536,85.035,84.979,10.591]
[1772598969727,3.90998536,85.035,84.98,3.85095232]
[1772598971230,3.90998536,85.035,84.983,10.591]
[1772598972129,3.90998536,85.029,84.973,10.592]
[1772598972331,3.90998536,85.029,84.965,3.85095232]
[1772598972530,3.90998536,85.029,84.951,3.85095232]
[1772598973220,3.90998536,85.017,84.953,3.85095232]
[1772598974335,3.90998536,85.009,84.953,3.85095232]
[1772598977031,3.90998536,85.009,84.955,3.85095232]
[1772598978531,3.90998536,85.009,84.95,4.74318363]
[1772598978532,3.89935011,85.029,84.958,3.88849275]
[1772598979322,3.89935011,85.029,84.97,3.88849275]
[1772598980731,3.89935011,85.029,84.973,3.91840035]
[1772598981435,3.88567459,85.042,84.975,3.91840035]
[1772598982229,3.88567459,85.042,84.981,3.91840035]
[1772598983933,3.88567459,85.042,84.983,3.91840035]
[1772598984330,3.88567459,85.042,84.985,10.59]
[1772598984536,3.88567459,85.042,84.986,3.91840035]
[1772598985333,3.88567459,85.042,84.987,14.50840035]
[1772598986431,1.59366826,85.04,84.99,1.59366826]
[1772598986727,3.88567459,85.039,84.991,3.91840035]
[1772598987538,1.59366826,85.03,84.991,3.91840035]
[1772598987733,3.88567459,85.029,84.98,1.59366826]
[1772598988432,1.59366826,85.01,84.966,3.91840035]
[1772598988628,1.59366826,85.0,84.957,10.594]
[1772598988832,1.59366826,85.0,84.957,14.51240035]
[1772598990337,3.88567459,84.999,84.95,1.59366826]
[1772598991632,3.88567459,84.999,84.951,3.91840035]
[1772598992028,1.59366826,84.98,84.934,3.91840035]
[1772598992233,5.47934285,84.98,84.934,3.91840035]
[1772598993537,3.88567459,84.969,84.92,1.59366826]
[1772598993734,3.88567459,84.969,84.921,3.91840035]
[1772598993934,3.88567459,84.969,84.93,1.59366826]
[1772598996137,3.88567459,84.969,84.93,5.51206861]
[1772598997441,1.59366826,84.98,84.931,3.91840035]
[1772598997642,1.59366826,84.98,84.93,1.59366826]
[1772598997643,1.59366826,84.99,84.95,1.59366826]
[1772598998041,1.59366826,84.99,84.941,3.91840035]
[1772598998846,3.88567459,84.999,84.951,3.91840035]
[1772598999045,1.59366826,84.99,84.951,3.91840035]
[1772598999442,5.47934285,84.99,84.951,3.91840035]
[1772598999747,1.59366826,84.98,84.941,3.91840035]
[1772598999936,1.59366826,84.98,84.93,5.51206861]
[1772598999937,3.88567459,84.979,84.93,5.51206861]
[1772599000143,3.88567459,84.979,84.931,3.91840035]
[1772599000739,1.59366826,84.97,84.931,3.91840035]
[1772599001552,1.59366826,84.97,84.922,10.598]
[1772599001553,3.88567459,84.969,84.89,3.91840035]
[1772599001749,3.88567459,84.969,84.921,3.91840035]
[1772599008063,3.67437949,84.979,84.931,3.91840035]
[1772599008557,1.59366826,84.97,84.931,3.91840035]
[1772599009264,3.67437949,84.959,84.918,3.65751448]
[1772599009659,3.67437949,84.949,84.905,3.65751448]
[1772599011859,3.67437949,84.949,84.9,1.59366826]
[1772599012060,3.67437949,84.949,84.894,14.25951448]
[1772599012258,3.67437949,84.949,84.9,1.59366826]
[1772599013765,3.67437949,84.949,84.901,3.65751448]
[1772599016866,3.67437949,84.949,84.903,3.65751448]
[1772599018360,3.67437949,84.949,84.904,10.6]
[1772599018668,1.59366826,84.94,84.903,3.65751448]
[1772599018865,3.67437949,84.939,84.893,10.602]
[1772599019058,1.59366826,84.93,84.89,1.59366826]
[1772599019865,3.67437949,84.929,84.889,3.65751448]
[1772599020466,3.67437949,84.919,84.875,3.65751448]
[1772599020666,3.67437949,84.899,84.847,3.65751448]
[1772599020864,1.59366826,84.88,84.833,3.65751448]
[1772599021170,1.59366826,84.87,84.82,12.20466826]
[1772599021368,1.59366826,84.86,84.82,1.59366826]
[1772599021568,1.59366826,84.83,84.771,8.80766966]
[1772599021771,10.72871847,84.892,84.811,8.80766966]
[1772599022065,10.601,84.903,84.831,8.80766966]
[1772599022262,10.601,84.903,84.825,10.61]
[1772599022263,1.59366826,84.88,84.841,8.80766966]
[1772599022460,4.75981527,84.9,84.841,8.80766966]
[1772599024372,4.75981527,84.9,84.843,8.73725387]
[1772599024868,4.75981527,84.92,84.843,8.73725387]
[1772599025269,4.75981527,84.94,84.861,8.8070597]